Cogmind - Beta 16 @@@ ROGUE MODE // 2026.01.13 @ 12:11:36 Player: PE-P51 Result: Destroyed by as-44237 with Assembled Maul Performance ------------- Evolutions (0) 0 Regions Visited (2) 400 Robots Destroyed (23) 115 Value Destroyed (445) 445 Prototype IDs (0) 0 Alien Tech Used (0) 0 Bonus (0) 0 TOTAL SCORE: 960 Bonus ------- None Cogmind --------- Core Integrity 0/250 Matter 280/300 Energy 350/350 System Corruption 0% Temperature Cool (0) Movement Core (300) Ox5 Location -10/Mines Parts ------- > --- POWER (1) -------- (None) > --- PROPULSION (2) --- (None) > --- UTILITY (2) ------ Medium Storage Unit High-capacity Battery > --- WEAPON (2) ------- Assault Rifle > --- INVENTORY (10) --- Light Ion Engine Aluminum Leg Aluminum Leg Small Storage Unit Small Battery (100) Sensor Array Peak State ------------ > --- POWER ------------ Ion Engine > --- PROPULSION ------- Aluminum Leg Aluminum Leg > --- UTILITY ---------- Backup Plating I Backup Plating I > --- WEAPON ----------- Light Assault Rifle Light Assault Rifle > --- INVENTORY -------- Light Ion Engine Light Treads Wheel Compact Wheel Assault Rifle [Rating: 7] Favorites ----------- Power Ion Engine Engine Ion Engine Propulsion Aluminum Leg Leg Aluminum Leg Utility Backup Plating I Device Sensor Array Storage Medium Storage Unit Protection Backup Plating I Weapon Light Assault Rifle Energy Gun Small Laser Ballistic Gun Light Assault Rifle Build | -11 -10 -10 ------- Run | Yrd Mat Min Slots Evolved . | . . . Power . | . . . Propulsion . | . . . Utility . | . . . Weapon . | . . . Parts Attached 15 | . 13 2 Power 1 | . 1 . Engine 1 | . 1 . Core . | . . . Reactor . | . . . Propulsion 4 | . 4 . Treads . | . . . Leg 4 | . 4 . Wheel . | . . . Hover . | . . . Flight . | . . . Utility 4 | . 3 1 Device 1 | . 1 . Storage 3 | . 2 1 Processor . | . . . Hackware . | . . . Protection . | . . . Artifact . | . . . Weapon 6 | . 5 1 Energy Gun 2 | . 2 . Energy Cannon . | . . . Ballistic Gun 4 | . 3 1 Ballistic Cannon . | . . . Launcher . | . . . Special Weapon . | . . . Impact Weapon . | . . . Slashing Weapon . | . . . Piercing Weapon . | . . . Special Melee Weapon . | . . . Unidentified Prototypes . | . . . Parts Lost 7 | . 2 5 Power 1 | . . 1 Propulsion 2 | . . 2 Utility 2 | . 2 . Weapon 2 | . . 2 Highest Loss Streak 5 | . 1 5 To Critical Strikes . | . . . Average Backups 5 | . 5 6 Power 1 | . 1 1 Propulsion 2 | . 2 2 Utility 1 | . . 2 Weapon . | . 1 . Tool/Special . | . . . Unused Backups 9 | . 8 1 Power 2 | . 2 . Propulsion 2 | . 2 . Utility 1 | . . 1 Weapon 4 | . 4 . Tool/Special . | . . . Average Slot Usage (%) 92 | . 92 95 Engine 13 | . 14 12 Leg 27 | . 28 26 Storage 7 | . 1 28 Protection 14 | . 17 . Energy Gun 10 | . 7 26 Ballistic Gun 16 | . 20 . Peak Build Rating 7 | . 7 7 Average Rating 6 | . 6 6 On Entrance 6 | 6 6 7 Avg Prop Armor Cover (%) . | . . . Naked Turns . | . . . Heaviest Build 21 | 12 18 21 Greatest Support 20 | 20 20 20 Greatest Overweight (x) 2 | . 2 1 Average Overweight (x) . | . . . Largest Inventory Capacity 10 | . 10 10 Average Capacity 6 | . 5 10 Most Carried 7 | . 6 7 Average Carried 5 | . 5 6 Final Capacity 10 | 8 10 10 Final Carried 6 | 6 6 6 Class Distribution -------------------- 63% | Mutant 36% | Scavenger-Mutant Dominant Class ---------------- Mutant | -10/Materials Scavenger-Mutant | -10/Mines Resources | -11 -10 -10 ----------- Run | Yrd Mat Min Matter Collected 481 | 185 256 40 Remotely . | . . . Salvage Created 525 | . 475 50 Parts 35 | . 33 2 Haulers Intercepted 2 | . 2 . Recyclers Shooed . | . . . Parts Field Recycled . | . . . Retrieved Matter . | . . . Parts Self-Destructed . | . . . Prevented . | . . . Parts Restored . | . . . Kills | -11 -10 -10 ------- Run | Yrd Mat Min Combat Hostiles Destroyed 19 | . 14 5 Guns 19 | . 14 5 Classes Destroyed 6 | . 5 1 Hauler 2 | . 2 . Operator 1 | . 1 . Watcher 1 | . 1 . Swarmer 12 | . 9 3 Grunt 5 | . 5 . Demolisher 2 | . . 2 Best Kill Streak 6 | . 6 3 Combat Bots Only 6 | . 6 3 Max Kills in Single Turn 1 | . 1 1 Gunslinging . | . . . Exploded . | . . . Melee . | . . . Uniques/NPCs Destroyed . | . . . Combat | -11 -10 -10 -------- Run | Yrd Mat Min Hostile Shots Fired 92 | . 66 26 Missed 24 | . 21 3 Hits 68 | . 45 23 Melee 1 | . . 1 Projectile 67 | . 45 22 AOE 10 | . . 10 Damage Taken 1004 | . 430 574 Core 270 | . 98 172 Absorbed by Shields . | . . . Core Remaining (%) 100 | 100 . . Volleys Fired 87 | . 77 10 Largest 2 | . 2 2 Hottest 80 | . 60 80 Shots Fired 167 | . 151 16 Gun 167 | . 151 16 Cannon . | . . . Launcher . | . . . Special . | . . . Kinetic 141 | . 136 5 Thermal 26 | . 15 11 Explosive . | . . . Electromagnetic . | . . . Robot Hit Streak 7 | . 7 5 Robot Miss Streak 4 | . 4 1 Penetration Max . | . . . Secondary Targets 3 | . 2 1 Max Gunslinging Chain 1 | . 1 1 Shots Hit Robots 92 | . 81 11 Core Hits 41 | . 36 5 Critical Kills . | . . . Critical Parts Destroyed . | . . . Critical Strikes . | . . . Melee Attacks . | . . . Impact . | . . . Slashing . | . . . Piercing . | . . . Sneak Attacks . | . . . Combat Hostiles . | . . . Follow-up Attacks . | . . . Damage Inflicted 840 | . 697 143 Guns 831 | . 697 134 Cannons . | . . . Explosions . | . . . Melee . | . . . Ramming 9 | . . 9 Kinetic 660 | . 598 62 Thermal 171 | . 99 72 Explosive . | . . . Electromagnetic . | . . . Impact . | . . . Slashing . | . . . Piercing . | . . . Highest Corruption . | . . . Average Corruption . | . . . Corruption Purged . | . . . Corruption Blocked . | . . . Overload Shots . | . . . Overflow Damage . | . . . Projectiles . | . . . Explosions . | . . . Melee . | . . . Knockbacks . | . . . Impact . | . . . Kinetic . | . . . Secondary . | . . . Self-Inflicted Damage . | . . . Shots . | . . . Rammed . | . . . Targets Rammed 1 | . . 1 Kicked 1 | . . 1 Crushed . | . . . Highest Temperature 90 | . 90 72 Average Temperature 17 | . 15 36 Received Heat Transfer 135 | . 123 12 Siege Activations . | . . . Martial Activations . | . . . Shielding Activations . | . . . Robots Disrupted . | . . . Combat Hostiles . | . . . Robots Corrupted . | . . . Combat Hostiles . | . . . Parts Fried . | . . . Impact Corruptions . | . . . Robots Melted . | . . . Combat Hostiles . | . . . Parts Melted . | . . . Heat Transferred 375 | . 225 150 Parts Sabotaged . | . . . Parts Stolen . | . . . Parts Stripped . | . . . Power Chain Reactions . | . . . Alert | -11 -10 -10 ------- Run | Yrd Mat Min Maximum Alert Level . | . . . Low Security (%) 100 | . 100 100 Level 1 . | . . . Level 2 . | . . . Level 3 . | . . . Level 4 . | . . . Level 5 . | . . . High Security . | . . . Max Security . | . . . Peak Influence 170 | . 170 70 Initial 7 | . . 7 Average 57 | . 64 24 Influence Increases 507 | . 387 120 Destroy 0b10 Robot/C 380 | . 280 100 Destroy 0b10 Robot/NC 20 | . 20 . Destroy Leader 86 | . 66 20 Successful Hack 21 | . 21 . Influence Decreases 477 | . 368 109 Entered New Map 12 | . . 12 Time Decay 435 | . 348 87 Lost Part 30 | . 20 10 Squads Dispatched 2 | . 2 . Investigation . | . . . Extermination . | . . . Reinforcement 2 | . 2 . Assault . | . . . Garrison . | . . . Intercept . | . . . Searches Triggered . | . . . Construction Impeded . | . . . Haulers Reinforced . | . . . Active Scanning Responses . | . . . Cargo Convoy Interrupts . | . . . Stealth | -11 -10 -10 --------- Run | Yrd Mat Min Distress Signals 1 | . 1 . Communications Jammed . | . . . Distress Signals . | . . . Times Spotted 30 | . 23 7 Peak Tracking Total 4 | . 4 3 Tactical Retreats . | . . . Traps | -11 -10 -10 ------- Run | Yrd Mat Min Traps Triggered 1 | . 1 . Indirectly . | . . . Trap Hack Attempts . | . . . Triggered . | . . . Disarmed . | . . . Reprogrammed . | . . . Reused . | . . . Traps Extracted . | . . . Installed . | . . . Triggered . | . . . Machines | -11 -10 -10 ---------- Run | Yrd Mat Min Machines Disabled . | . . . Max in Single Turn . | . . . Machines Repaired . | . . . Machines Dismantled . | . . . Machines Sabotaged . | . . . Overloaded Fab Kills . | . . . Hacking | -11 -10 -10 --------- Run | Yrd Mat Min Machines Accessed 4 | . 4 . Terminals 3 | . 3 . Fabricators . | . . . Repair Stations 1 | . 1 . Recycling Units . | . . . Scanalyzers . | . . . Garrison Access . | . . . Total Hacks 10 | . 10 . Successful 7 | . 7 . Failed 2 | . 2 . Catastrophic . | . . . Database Lockouts 1 | . 1 . Manual 7 | . 7 . Terminals 9 | . 9 . Fabricators . | . . . Repair Stations 1 | . 1 . Recycling Units . | . . . Scanalyzers . | . . . Garrison Access . | . . . Terminal Hacks 4 | . 4 . Robot Analysis 1 | . 1 . Alert Level 2 | . 2 . Hauler Manifests 1 | . 1 . Fabricator Hacks . | . . . Repair Station Hacks 1 | . 1 . Refit 1 | . 1 . Recycling Unit Hacks . | . . . Scanalyzer . | . . . Garrison Access Hacks . | . . . Unauthorized Hacks 2 | . 2 . Terminals 2 | . 2 . Botnet 2 | . 2 . Fabricators . | . . . Repair Stations . | . . . Recycling Units . | . . . Scanalyzers . | . . . Garrison Access . | . . . Data Cores Recovered . | . . . Used . | . . . Hacking Detections 3 | . 3 . Full Trace Events . | . . . Feedback Events . | . . . Feedback Blocked . | . . . Robot Schematics Acquired . | . . . Robots Built . | . . . Authchips . | . . . Time . | . . . Total Robot Build Rating . | . . . Part Schematics Acquired . | . . . Parts Built . | . . . Authchips . | . . . Time . | . . . Total Part Build Rating . | . . . Part Studies Acquired . | . . . Parts Repaired . | . . . Time . | . . . Parts Recycled . | . . . Recycled Matter . | . . . Retrieved Matter . | . . . Retrieved Components . | . . . Parts Scanalyzed . | . . . Part Schematics Acquired . | . . . Parts Damaged . | . . . Bothacking | -11 -10 -10 ------------ Run | Yrd Mat Min Used RIF Installer . | . . . Robots Hacked . | . . . Non-combat . | . . . Combat . | . . . Robot Hacks Applied . | . . . Relay Couplers Released . | . . . Fabnet Peak Effective % . | . . . Robots Rewired . | . . . Allies Hacked . | . . . Hacks Repelled . | . . . Allies | -11 -10 -10 -------- Run | Yrd Mat Min Total Allies 2 | . . 2 Largest Group 2 | . . 2 Highest-Rated Group 51 | . . 51 Highest-Rated Ally 31 | . . 31 Total Orders . | . . . Ally Attacks 1 | . . 1 Total Damage 20 | . . 20 Kills . | . . . Allies Corrupted . | . . . Allies Melted . | . . . Intel | -11 -10 -10 ------- Run | Yrd Mat Min Active Infowar (turns) 68 | . 68 . Sensors 68 | . 68 . Robot Analysis Total 1 | . 1 . Derelict Logs Recovered . | . . . Drone Launches . | . . . Drone Recoveries . | . . . Exploration | -11 -10 -10 ------------- Run | Yrd Mat Min Turns Passed 1181 | . 957 224 Spaces Moved 704 | 1 601 102 Core 1 | . 1 . Treads . | . . . Legs 703 | 1 600 102 Wheels . | . . . Hover . | . . . Flight . | . . . Fastest Speed 120 | 120 120 120 Average Speed 127 | 120 120 168 Slowest Speed 190 | 120 150 190 Overloaded Moves . | . . . Propulsion Burnouts . | . . . Robots Hopped . | . . . Potential Cave-ins . | . . . Cave-ins Triggered . | . . . Exploration Rate (%) 36 | 2 85 23 Regions Visited 2 Branch Regions 1 Pre-discovered Areas . | . . . Known Exits Taken . | . . . Unknown Exits Taken 2 | 1 1 . Scrap Searched 1 | . . 1 Spaces Dug . | . . . Terrain Destroyed . | . . . Melee . | . . . Projectile . | . . . AOE . | . . . Terrain Rammed . | . . . Walls Destroyed . | . . . Machines Disabled . | . . . Actions | -11 -10 -10 --------- Run | Yrd Mat Min Total 853 | . 715 138 Wait 29 | . 6 23 Move 702 | . 600 102 Hop . | . . . Pick Up 5 | . 5 . Fast Attach 5 | . 5 . Attach 1 | . . 1 Detach . | . . . Swap 10 | . 9 1 Drop 13 | . 13 . Fire 87 | . 77 10 Melee . | . . . Ram . | . . . Kick 1 | . . 1 Crush . | . . . Escape Stasis . | . . . Rewire . | . . . Trap . | . . . Miscellaneous . | . . . Route ------- -11/Scrapyard -10/Materials (discovered 4 exits: [*Mat x3] / [*Min]) -10/Mines (discovered 1 exit: [*Mat]) History --------- Turn | Location | Event 1 | -11/Scrapyard | Discovered new exit (range 0) 1 | -11/Scrapyard | Entered Materials 313 | -10/Materials | Build established: Mutant 375 | -10/Materials | Discovered new exit (range 15) 454 | -10/Materials | Central database locked down 495 | -10/Materials | Discovered new exit (range 15) 735 | -10/Materials | Discovered new exit (range 16) 912 | -10/Materials | Discovered new exit (range 8) 958 | -10/Materials | Entered Mines 974 | -10/Mines | Discovered new exit (range 16) 1049 | -10/Mines | Build established: Scavenger-Mutant 1111 | -10/Mines | Assembled infested the area 1167 | -10/Mines | Core integrity fell below 50% 1171 | -10/Mines | Core integrity fell below 20% 1182 | -10/Mines | Destroyed by as-44237 with Assembled Maul Last Messages --------------- 01122_ K-01 Serf collects debris. 01166_ Ion Engine destroyed. 01166_ Plasma Injector explodes. 01167_ The unstable cave ceiling collapses. 01168_ Sml. Laser destroyed. 01168_ Aluminum Leg destroyed. 01169_ R-06 Scavenger collects Imp. Heat Sink. 01170_ Aluminum Leg destroyed. 01171_ The unstable cave ceiling collapses. 01172_ as-44237 sneak attacks. 01172_ R-06 Scavenger knocked back. 01172_ D-53 Grenadier destroyed. 01173_ The unstable cave ceiling collapses. 01174_ Sml. Laser destroyed. 01175_ K-01 Serf collects debris. 01177_ The unstable cave ceiling collapses. 01177_ D-53 Grenadier destroyed. 01178_ The unstable cave ceiling collapses. 01180_ K-01 Serf collects debris. 01181_ The unstable cave ceiling collapses. Map ----- +----------------------------------------------------+ | ?????????????????????????????????????????????? | | ?????????????????????????????????????????????? | | ?????????????????????????????????????????????? | | ?????????????????????????????????????????????? | | ?????????????????????????????????????????????? | | ?????????????????????????????????????????????? | | ?????????????????????????????????????????????? | | ?????????????????????????????????????????????? | | ?????????????????????????????????????????????? | | ?????????????????????????????????????????????? | | ?????????????????????????????????????????????? | | ?????????????????????????????????????????????? | | ?????????????????????????????????????????????? | | ?????????????????????????????????????????????? | | ?????????????????????????????????????????????? | | ?????????????????????????????????????????????? | | ?????????????????????????????????????????????? | | ??????????????????#####??????????????????????? | | ??????????????????? ?????##???????????????? | | ???????????????????## ###### ####????????????? | | ?????????????????### # #??????? #??? | | ?????????????????# # ##??? #???? | | ?????????????????# % # #???? | | ????????????????## a # #????? | | ????????????????# # #????? | | ?????????????????# a@ #?????? | | ???????????????### % ##?????? | | ???????????????# ##??????? | | ?????############ ##???????? | | ?????# # #;#; #????????? | | ?????# t% ######### #???????? | | ????????######## #????????# #???????? | | ??????????????# % #?????????# #???????? | | ?????????????# #??????????###???????? | | ???????????### #??##############????? | | ???????????# ##??# #????? | | ???????????# # %##???# #????? | | ???????????# ##### k ###### ######## ##???? | | ???????????#?????## ######## ##??? | | ??????????????????## ## ##?? | | ???????????????????############# ##### #?? | | ?????????????????????????????????????## < #?? | | ??????????????????????????????????????# #?? | | ??????????????????????????????????????# #?? | | ??????????????????????????????????????## ##?? | | ???????????????????????????????????????# ##??? | | ???????????????????????????????????????#%#???? | | ???????????????????????????????????????# #???? | | ???????????????????????????????????????# #???? | | ???????????????????????????????????????# #???? | +----------------------------------------------------+ Best States ------------- Heat Dissipation 25 Energy Generation 10 Energy Capacity 500 Matter Stores 300 Matter Capacity 300 Sight Range 16 Robot Scan Range 14 Terrain Scan Density 10 Armor Coverage 160 Evasion (%) 55 Item Schematics ----------------- None Robot Schematics ------------------ None Fabricated ------------ Nothing Repaired ---------- Nothing Studied --------- None Alien Tech Used ----------------- None Achievements -------------- None Challenges ------------ None Game ------ Seed MagneticMasterStabilizer Manual? 0 Play Time 00:07:32 Cumulative 307.7 hours Start 2026.01.12 @ 21:12:15 End 2026.01.13 @ 12:11:36 Sessions 2 Manual Loads 0 Difficulty Rogue Special Mode None Game No. 371 Rogue 370 Adventurer 1 Explorer 0 Win Type - Total 3 Types 1/0/0/1/1/0/0/0/0/0 Lore% 76 Gallery% 69 Achievement% 58 Wizard Run 0 Options --------- Layout 0 ASCII 0 Keyboard 0 Movement Numpad Keybinds 0 Fullscreen 2 Font 24/Smallcaps Map View 76x50 Zoom Use 0% Tactical HUD 1 Map Filters NONE Filters NONE Steam 1 RUN: 069af40c-bcd2-42a7-8b29-d0c017f69d9b